[Event "Titled Tuesday Blitz February 14 Late 2023"]
[White "Tworuszka, Michal"]
[Black "Miszler, Levente"]
[WhiteFideId "1117858"]
[BlackFideId "763276"]
[WhiteElo "2260"]
[BlackElo "2271"]
[Result "1-0"]
[Round "09"]
[TimeControl "180+2"]
[Date "2023.02.14"]
[WhiteClock "0:01:42"]
[BlackClock "0:02:17"]

1. e4 {[%clk 0:02:57]}  e6 {[%clk 0:03:00]} 2. d4 {[%clk 0:02:56]}  d5 {[%clk 0:03:00]} 3. Nd2 {[%clk 0:02:55]}  f5 {[%clk 0:03:00]} 4. exf5 {[%clk 0:02:53]}  exf5 {[%clk 0:03:01]} 5. Ngf3 {[%clk 0:02:53]}  Nf6 {[%clk 0:03:01]} 6. Bd3 {[%clk 0:02:53]}  Bd6 {[%clk 0:03:01]} 7. Qe2+ {[%clk 0:02:52]}  Qe7 {[%clk 0:03:00]} 8. Qxe7+ {[%clk 0:02:45]}  Kxe7 {[%clk 0:03:01]} 9. O-O {[%clk 0:02:44]}  Ne4 {[%clk 0:03:00]} 10. Ne5 {[%clk 0:02:40]}  Nc6 {[%clk 0:03:00]} 11. Nxc6+ {[%clk 0:02:39]}  bxc6 {[%clk 0:03:01]} 12. f3 {[%clk 0:02:38]}  Nxd2 {[%clk 0:02:58]} 13. Bxd2 {[%clk 0:02:38]}  c5 {[%clk 0:02:57]} 14. Rae1+ {[%clk 0:02:34]}  Kf6 {[%clk 0:02:56]} 15. dxc5 {[%clk 0:02:31]}  Bxc5+ {[%clk 0:02:57]} 16. Kh1 {[%clk 0:02:30]}  Bd7 {[%clk 0:02:52]} 17. Bf4 {[%clk 0:02:27]}  Bd6 {[%clk 0:02:46]} 18. Bxd6 {[%clk 0:02:22]}  cxd6 {[%clk 0:02:47]} 19. Kg1 {[%clk 0:02:12]}  Rhe8 {[%clk 0:02:46]} 20. Kf2 {[%clk 0:02:12]}  Rab8 {[%clk 0:02:47]} 21. b3 {[%clk 0:02:12]}  Rxe1 {[%clk 0:02:44]} 22. Rxe1 {[%clk 0:02:12]}  Bb5 {[%clk 0:02:44]} 23. Bxb5 {[%clk 0:02:06]}  Rxb5 {[%clk 0:02:45]} 24. Ke3 {[%clk 0:02:05]}  Ra5 {[%clk 0:02:40]} 25. a4 {[%clk 0:02:04]}  Rc5 {[%clk 0:02:40]} 26. Kd3 {[%clk 0:02:00]}  Rc8 {[%clk 0:02:33]} 27. c3 {[%clk 0:01:57]}  a5 {[%clk 0:02:32]} 28. Rb1 {[%clk 0:01:54]}  Ke5 {[%clk 0:02:26]} 29. b4 {[%clk 0:01:51]}  axb4 {[%clk 0:02:27]} 30. cxb4 {[%clk 0:01:50]}  d4 {[%clk 0:02:28]} 31. b5 {[%clk 0:01:47]}  Kd5 {[%clk 0:02:27]} 32. b6 {[%clk 0:01:43]}  Kc6 {[%clk 0:02:16]} 33. Rc1+ {[%clk 0:01:42]}  Kb7 {[%clk 0:02:16]} 34. Rxc8 {[%clk 0:01:42]}  Kxc8 {[%clk 0:02:16]} 35. Kxd4 {[%clk 0:01:42]}  Kb7 {[%clk 0:02:17]} 36. a5 {[%clk 0:01:42]} 1-0


[Site "https://www.chess.com"]

[Event "Titled Tuesday Blitz February 14 Late 2023"]
[White "Papayan, Oleg"]
[Black "Vaglio Munoz, Jaime"]
[WhiteFideId "4193911"]
[BlackFideId "6500145"]
[WhiteElo "2253"]
[BlackElo "2174"]
[Result "0-1"]
[Round "09"]
[TimeControl "180+2"]
[Date "2023.02.14"]
[WhiteClock "0:00:03"]
[BlackClock "0:00:44"]

1. e4 {[%clk 0:03:00]}  e6 {[%clk 0:02:59]} 2. d4 {[%clk 0:03:00]}  d5 {[%clk 0:02:59]} 3. Nc3 {[%clk 0:03:01]}  dxe4 {[%clk 0:02:59]} 4. Nxe4 {[%clk 0:03:01]}  Nf6 {[%clk 0:02:59]} 5. Nxf6+ {[%clk 0:03:01]}  Qxf6 {[%clk 0:02:59]} 6. Nf3 {[%clk 0:03:01]}  h6 {[%clk 0:03:00]} 7. Bd3 {[%clk 0:03:00]}  Nc6 {[%clk 0:03:00]} 8. O-O {[%clk 0:02:47]}  Bd6 {[%clk 0:03:00]} 9. c3 {[%clk 0:02:45]}  O-O {[%clk 0:02:59]} 10. Re1 {[%clk 0:02:45]}  e5 {[%clk 0:02:58]} 11. dxe5 {[%clk 0:02:40]}  Nxe5 {[%clk 0:02:59]} 12. Nxe5 {[%clk 0:02:40]}  Bxe5 {[%clk 0:02:59]} 13. Qe2 {[%clk 0:02:29]}  Re8 {[%clk 0:02:42]} 14. Be3 {[%clk 0:02:05]}  Bd7 {[%clk 0:02:39]} 15. Rad1 {[%clk 0:01:44]}  Bc6 {[%clk 0:02:39]} 16. Qg4 {[%clk 0:01:10]}  Rad8 {[%clk 0:02:34]} 17. Qf5 {[%clk 0:01:05]}  Qxf5 {[%clk 0:01:53]} 18. Bxf5 {[%clk 0:01:06]}  g6 {[%clk 0:01:50]} 19. Bc2 {[%clk 0:00:52]}  Kg7 {[%clk 0:01:49]} 20. Rxd8 {[%clk 0:00:43]}  Rxd8 {[%clk 0:01:48]} 21. Rd1 {[%clk 0:00:25]}  Re8 {[%clk 0:01:44]} 22. h3 {[%clk 0:00:24]}  Bd6 {[%clk 0:01:42]} 23. Bd4+ {[%clk 0:00:23]}  f6 {[%clk 0:01:41]} 24. Bd3 {[%clk 0:00:20]}  a6 {[%clk 0:01:40]} 25. b4 {[%clk 0:00:19]}  b5 {[%clk 0:01:38]} 26. Kf1 {[%clk 0:00:17]}  Kf7 {[%clk 0:01:37]} 27. Ra1 {[%clk 0:00:14]}  Be5 {[%clk 0:01:28]} 28. Bxe5 {[%clk 0:00:11]}  Rxe5 {[%clk 0:01:28]} 29. a4 {[%clk 0:00:12]}  Ke7 {[%clk 0:01:13]} 30. axb5 {[%clk 0:00:10]}  axb5 {[%clk 0:01:13]} 31. Ra6 {[%clk 0:00:08]}  Be8 {[%clk 0:01:08]} 32. Ra7 {[%clk 0:00:05]}  Kd6 {[%clk 0:01:07]} 33. Ra8 {[%clk 0:00:03]}  g5 {[%clk 0:01:00]} 34. Rd8+ {[%clk 0:00:03]}  Ke7 {[%clk 0:00:59]} 35. Rb8 {[%clk 0:00:02]}  Bd7 {[%clk 0:00:56]} 36. Rb7 {[%clk 0:00:02]}  Kd6 {[%clk 0:00:56]} 37. Rb8 {[%clk 0:00:02]}  f5 {[%clk 0:00:56]} 38. Rh8 {[%clk 0:00:02]}  Rd5 {[%clk 0:00:56]} 39. Be2 {[%clk 0:00:02]}  Re5 {[%clk 0:00:50]} 40. Rxh6+ {[%clk 0:00:03]}  Be6 {[%clk 0:00:46]} 41. Bxb5 {[%clk 0:00:02]}  Rxb5 {[%clk 0:00:44]} 42. h4 {[%clk 0:00:01]}  g4 {[%clk 0:00:43]} 43. h5 {[%clk 0:00:01]}  Re5 {[%clk 0:00:43]} 44. Rh8 {[%clk 0:00:01]}  f4 {[%clk 0:00:43]} 45. h6 {[%clk 0:00:01]}  g3 {[%clk 0:00:43]} 46. fxg3 {[%clk 0:00:01]}  fxg3 {[%clk 0:00:44]} 47. h7 {[%clk 0:00:02]}  Bc4+ {[%clk 0:00:44]} 48. Kg1 {[%clk 0:00:03]}  Re1# {[%clk 0:00:44]} 0-1


[Site "https://www.chess.com"]

[Event "Titled Tuesday Blitz February 14 Late 2023"]
[White "Torres Dominguez, David"]
[Black "Martic, Ivan"]
[WhiteFideId "2220857"]
[BlackFideId "929301"]
[WhiteElo "1994"]
[BlackElo "2301"]
[Result "0-1"]
[Round "09"]
[TimeControl "180+2"]
[Date "2023.02.14"]
[WhiteClock "0:00:13"]
[BlackClock "0:00:24"]

1. e4 {[%clk 0:02:59]}  d6 {[%clk 0:02:58]} 2. Nc3 {[%clk 0:02:57]}  c5 {[%clk 0:02:55]} 3. Bb5+ {[%clk 0:02:53]}  Bd7 {[%clk 0:02:52]} 4. Bxd7+ {[%clk 0:02:53]}  Nxd7 {[%clk 0:02:52]} 5. d3 {[%clk 0:02:52]}  Ngf6 {[%clk 0:02:51]} 6. f4 {[%clk 0:02:53]}  g6 {[%clk 0:02:50]} 7. Nf3 {[%clk 0:02:53]}  Bg7 {[%clk 0:02:51]} 8. O-O {[%clk 0:02:54]}  O-O {[%clk 0:02:51]} 9. Qe1 {[%clk 0:02:52]}  Rb8 {[%clk 0:02:48]} 10. a4 {[%clk 0:02:51]}  e6 {[%clk 0:02:45]} 11. Qh4 {[%clk 0:02:47]}  a6 {[%clk 0:02:45]} 12. f5 {[%clk 0:02:46]}  exf5 {[%clk 0:02:44]} 13. Bh6 {[%clk 0:02:43]}  Ng4 {[%clk 0:02:27]} 14. Qxd8 {[%clk 0:02:37]}  Rbxd8 {[%clk 0:02:27]} 15. Bxg7 {[%clk 0:02:34]}  Kxg7 {[%clk 0:02:28]} 16. exf5 {[%clk 0:02:34]}  Ne3 {[%clk 0:02:18]} 17. Rf2 {[%clk 0:02:16]}  Nxf5 {[%clk 0:02:17]} 18. Nd5 {[%clk 0:02:14]}  Ne5 {[%clk 0:02:10]} 19. Nxe5 {[%clk 0:02:09]}  dxe5 {[%clk 0:02:11]} 20. c4 {[%clk 0:02:05]}  h5 {[%clk 0:02:08]} 21. Re1 {[%clk 0:02:04]}  f6 {[%clk 0:02:08]} 22. g3 {[%clk 0:01:48]}  Nd4 {[%clk 0:02:04]} 23. Ref1 {[%clk 0:01:45]}  f5 {[%clk 0:02:01]} 24. Re1 {[%clk 0:01:44]}  Rde8 {[%clk 0:02:01]} 25. Kg2 {[%clk 0:01:41]}  a5 {[%clk 0:01:55]} 26. h3 {[%clk 0:01:32]}  Re6 {[%clk 0:01:47]} 27. Nc7 {[%clk 0:01:29]}  Rc6 {[%clk 0:01:36]} 28. Nd5 {[%clk 0:01:23]}  Re8 {[%clk 0:01:36]} 29. g4 {[%clk 0:01:15]}  hxg4 {[%clk 0:01:34]} 30. hxg4 {[%clk 0:01:15]}  Rd6 {[%clk 0:01:23]} 31. gxf5 {[%clk 0:01:08]}  gxf5 {[%clk 0:01:24]} 32. Kf1 {[%clk 0:01:07]}  Rg6 {[%clk 0:01:21]} 33. Rg2 {[%clk 0:01:04]}  Rxg2 {[%clk 0:01:14]} 34. Kxg2 {[%clk 0:01:04]}  Nc6 {[%clk 0:01:15]} 35. Re3 {[%clk 0:00:59]}  Re6 {[%clk 0:01:12]} 36. Kf2 {[%clk 0:00:55]}  Rh6 {[%clk 0:01:11]} 37. Rg3+ {[%clk 0:00:54]}  Rg6 {[%clk 0:01:11]} 38. Rxg6+ {[%clk 0:00:44]}  Kxg6 {[%clk 0:01:12]} 39. Nb6 {[%clk 0:00:36]}  Nb4 {[%clk 0:00:53]} 40. Ke2 {[%clk 0:00:30]}  Nc2 {[%clk 0:00:48]} 41. Nd7 {[%clk 0:00:28]}  Nd4+ {[%clk 0:00:48]} 42. Ke3 {[%clk 0:00:26]}  Nc6 {[%clk 0:00:35]} 43. Nxc5 {[%clk 0:00:25]}  f4+ {[%clk 0:00:30]} 44. Kf2 {[%clk 0:00:23]}  Kf5 {[%clk 0:00:28]} 45. Nxb7 {[%clk 0:00:23]}  Nb4 {[%clk 0:00:28]} 46. Nd6+ {[%clk 0:00:17]}  Kg4 {[%clk 0:00:26]} 47. Ke2 {[%clk 0:00:17]}  Kg3 {[%clk 0:00:26]} 48. Ne4+ {[%clk 0:00:16]}  Kg2 {[%clk 0:00:26]} 49. c5 {[%clk 0:00:17]}  f3+ {[%clk 0:00:26]} 50. Kd2 {[%clk 0:00:16]}  f2 {[%clk 0:00:24]} 51. Nxf2 {[%clk 0:00:15]}  Kxf2 {[%clk 0:00:25]} 52. d4 {[%clk 0:00:15]}  exd4 {[%clk 0:00:25]} 53. b3 {[%clk 0:00:13]}  Kf3 {[%clk 0:00:24]} 0-1


[Site "https://www.chess.com"]

[Event "Titled Tuesday Blitz February 14 Late 2023"]
[White "Figorito, Nick"]
[Black "Golubev, Mikhail"]
[WhiteFideId "30923689"]
[BlackFideId "14100983"]
[WhiteElo "2036"]
[BlackElo "2461"]
[Result "1-0"]
[Round "09"]
[TimeControl "180+2"]
[Date "2023.02.14"]
[WhiteClock "0:00:10"]
[BlackClock "0:00:01"]

1. Nf3 {[%clk 0:03:00]}  d6 {[%clk 0:02:57]} 2. g3 {[%clk 0:03:01]}  g6 {[%clk 0:02:57]} 3. Bg2 {[%clk 0:03:01]}  Bg7 {[%clk 0:02:57]} 4. O-O {[%clk 0:03:02]}  e5 {[%clk 0:02:55]} 5. c4 {[%clk 0:03:02]}  Nc6 {[%clk 0:02:54]} 6. Nc3 {[%clk 0:03:03]}  f5 {[%clk 0:02:53]} 7. d3 {[%clk 0:03:03]}  h6 {[%clk 0:02:53]} 8. Rb1 {[%clk 0:03:03]}  a5 {[%clk 0:02:52]} 9. a3 {[%clk 0:03:03]}  g5 {[%clk 0:02:52]} 10. Nd5 {[%clk 0:02:59]}  Nce7 {[%clk 0:02:42]} 11. b4 {[%clk 0:02:51]}  Nxd5 {[%clk 0:02:38]} 12. cxd5 {[%clk 0:02:50]}  axb4 {[%clk 0:02:38]} 13. axb4 {[%clk 0:02:50]}  Nf6 {[%clk 0:02:37]} 14. Ne1 {[%clk 0:02:42]}  O-O {[%clk 0:02:35]} 15. Qc2 {[%clk 0:02:41]}  Rf7 {[%clk 0:02:27]} 16. Bb2 {[%clk 0:02:27]}  f4 {[%clk 0:02:21]} 17. Nf3 {[%clk 0:02:15]}  Bf5 {[%clk 0:02:03]} 18. Nd2 {[%clk 0:02:10]}  h5 {[%clk 0:01:53]} 19. Ne4 {[%clk 0:02:10]}  Nxe4 {[%clk 0:01:44]} 20. dxe4 {[%clk 0:02:09]}  Bd7 {[%clk 0:01:38]} 21. b5 {[%clk 0:02:00]}  b6 {[%clk 0:01:38]} 22. Bc3 {[%clk 0:01:53]}  g4 {[%clk 0:01:28]} 23. Bd2 {[%clk 0:01:47]}  h4 {[%clk 0:01:15]} 24. Rfc1 {[%clk 0:01:40]}  Rc8 {[%clk 0:01:06]} 25. Be1 {[%clk 0:01:35]}  fxg3 {[%clk 0:00:46]} 26. fxg3 {[%clk 0:01:35]}  h3 {[%clk 0:00:42]} 27. Bh1 {[%clk 0:01:33]}  Bh6 {[%clk 0:00:25]} 28. Bd2 {[%clk 0:01:28]}  Bxd2 {[%clk 0:00:23]} 29. Qxd2 {[%clk 0:01:28]}  Qe7 {[%clk 0:00:22]} 30. Rf1 {[%clk 0:01:21]}  Rcf8 {[%clk 0:00:21]} 31. Rbc1 {[%clk 0:01:18]}  Be8 {[%clk 0:00:19]} 32. Rf5 {[%clk 0:00:57]}  Rxf5 {[%clk 0:00:16]} 33. exf5 {[%clk 0:00:58]}  Rxf5 {[%clk 0:00:16]} 34. Be4 {[%clk 0:00:59]}  Rf7 {[%clk 0:00:12]} 35. Qh6 {[%clk 0:00:49]}  Rg7 {[%clk 0:00:11]} 36. Bf5 {[%clk 0:00:40]}  Qg5 {[%clk 0:00:08]} 37. Qxg5 {[%clk 0:00:37]}  Rxg5 {[%clk 0:00:07]} 38. Be6+ {[%clk 0:00:38]}  Kf8 {[%clk 0:00:06]} 39. Rxc7 {[%clk 0:00:38]}  Rg7 {[%clk 0:00:06]} 40. Rc8 {[%clk 0:00:28]}  Ra7 {[%clk 0:00:05]} 41. Bxg4 {[%clk 0:00:26]}  Ke7 {[%clk 0:00:05]} 42. Bxh3 {[%clk 0:00:18]}  Bxb5 {[%clk 0:00:05]} 43. Rh8 {[%clk 0:00:16]}  Ra2 {[%clk 0:00:04]} 44. Bg4 {[%clk 0:00:15]}  Bxe2 {[%clk 0:00:03]} 45. Bxe2 {[%clk 0:00:15]}  Rxe2 {[%clk 0:00:03]} 46. Rb8 {[%clk 0:00:16]}  Re1+ {[%clk 0:00:02]} 47. Kf2 {[%clk 0:00:16]}  Rb1 {[%clk 0:00:03]} 48. h4 {[%clk 0:00:16]}  Kf6 {[%clk 0:00:04]} 49. Kf3 {[%clk 0:00:16]}  Rb3+ {[%clk 0:00:03]} 50. Kg4 {[%clk 0:00:16]}  e4 {[%clk 0:00:03]} 51. Re8 {[%clk 0:00:15]}  e3 {[%clk 0:00:02]} 52. Kf3 {[%clk 0:00:15]}  e2+ {[%clk 0:00:02]} 53. Kxe2 {[%clk 0:00:15]}  Rxg3 {[%clk 0:00:02]} 54. Re6+ {[%clk 0:00:15]}  Kf5 {[%clk 0:00:02]} 55. Rxd6 {[%clk 0:00:16]}  Ke5 {[%clk 0:00:02]} 56. Rd8 {[%clk 0:00:13]}  Rh3 {[%clk 0:00:01]} 57. d6 {[%clk 0:00:10]}  Rxh4 {[%clk 0:00:01]} 58. d7 {[%clk 0:00:11]}  Kd6 {[%clk 0:00:01]} 59. Ke3 {[%clk 0:00:08]}  Kc7 {[%clk 0:00:01]} 60. Rg8 {[%clk 0:00:06]}  Kxd7 {[%clk 0:00:01]} 61. Rg7+ {[%clk 0:00:07]}  Kd6 {[%clk 0:00:01]} 62. Kd3 {[%clk 0:00:07]}  Kc5 {[%clk 0:00:01]} 63. Rg6 {[%clk 0:00:08]}  Kb4 {[%clk 0:00:01]} 64. Rg5 {[%clk 0:00:09]}  Ka4 {[%clk 0:00:01]} 65. Rg6 {[%clk 0:00:10]} 1-0


[Site "https://www.chess.com"]

[Event "Titled Tuesday Blitz February 14 Late 2023"]
[White "Kalajzic, Ivan"]
[Black "Hajiyev, Kanan"]
[WhiteFideId "14506378"]
[BlackFideId "13404148"]
[WhiteElo "2062"]
[BlackElo "2197"]
[Result "0-1"]
[Round "09"]
[TimeControl "180+2"]
[Date "2023.02.14"]
[WhiteClock "0:00:01"]
[BlackClock "0:00:11"]

1. d4 {[%clk 0:02:48]}  d5 {[%clk 0:02:41]} 2. Nc3 {[%clk 0:02:45]}  c6 {[%clk 0:02:40]} 3. Nf3 {[%clk 0:02:45]}  a6 {[%clk 0:02:41]} 4. e4 {[%clk 0:02:42]}  Bg4 {[%clk 0:02:41]} 5. h3 {[%clk 0:02:39]}  Bh5 {[%clk 0:02:41]} 6. g4 {[%clk 0:02:32]}  Bg6 {[%clk 0:02:40]} 7. Bd3 {[%clk 0:02:26]}  e6 {[%clk 0:02:39]} 8. h4 {[%clk 0:02:14]}  Nf6 {[%clk 0:02:33]} 9. Bg5 {[%clk 0:02:12]}  Qa5 {[%clk 0:02:16]} 10. Bxf6 {[%clk 0:02:06]}  gxf6 {[%clk 0:02:16]} 11. exd5 {[%clk 0:01:49]}  cxd5 {[%clk 0:02:13]} 12. h5 {[%clk 0:01:47]}  Bxd3 {[%clk 0:02:13]} 13. Qxd3 {[%clk 0:01:48]}  Bh6 {[%clk 0:02:01]} 14. Nd2 {[%clk 0:01:44]}  Nc6 {[%clk 0:01:57]} 15. Nb3 {[%clk 0:01:21]}  Qc7 {[%clk 0:01:45]} 16. a3 {[%clk 0:01:07]}  O-O-O {[%clk 0:01:41]} 17. Ne2 {[%clk 0:00:59]}  Rdg8 {[%clk 0:01:19]} 18. f3 {[%clk 0:00:54]}  Bf4 {[%clk 0:01:13]} 19. Rg1 {[%clk 0:00:49]}  h6 {[%clk 0:01:12]} 20. Nd2 {[%clk 0:00:44]}  Na5 {[%clk 0:00:48]} 21. Qc3 {[%clk 0:00:39]}  Qxc3 {[%clk 0:00:31]} 22. Nxc3 {[%clk 0:00:38]}  Nc4 {[%clk 0:00:31]} 23. Nxc4 {[%clk 0:00:37]}  dxc4 {[%clk 0:00:31]} 24. Ke2 {[%clk 0:00:37]}  Rd8 {[%clk 0:00:29]} 25. Rad1 {[%clk 0:00:37]}  b5 {[%clk 0:00:29]} 26. d5 {[%clk 0:00:36]}  Be5 {[%clk 0:00:28]} 27. dxe6 {[%clk 0:00:35]}  Bxc3 {[%clk 0:00:27]} 28. bxc3 {[%clk 0:00:35]}  fxe6 {[%clk 0:00:27]} 29. a4 {[%clk 0:00:32]}  Kc7 {[%clk 0:00:26]} 30. axb5 {[%clk 0:00:32]}  axb5 {[%clk 0:00:26]} 31. Rb1 {[%clk 0:00:28]}  Kc6 {[%clk 0:00:25]} 32. Rb2 {[%clk 0:00:25]}  e5 {[%clk 0:00:24]} 33. Ke3 {[%clk 0:00:24]}  Ra8 {[%clk 0:00:23]} 34. Rgb1 {[%clk 0:00:23]}  Rhb8 {[%clk 0:00:20]} 35. Ke4 {[%clk 0:00:23]}  Kc5 {[%clk 0:00:18]} 36. Kf5 {[%clk 0:00:23]}  Rb6 {[%clk 0:00:19]} 37. Rd1 {[%clk 0:00:20]}  Ra3 {[%clk 0:00:17]} 38. Rd8 {[%clk 0:00:19]}  Rxc3 {[%clk 0:00:17]} 39. Rc8+ {[%clk 0:00:18]}  Kd4 {[%clk 0:00:16]} 40. Rb1 {[%clk 0:00:17]}  Rxf3+ {[%clk 0:00:16]} 41. Kg6 {[%clk 0:00:16]}  f5+ {[%clk 0:00:16]} 42. Kh7 {[%clk 0:00:13]}  fxg4 {[%clk 0:00:16]} 43. Rd1+ {[%clk 0:00:09]}  Kc3 {[%clk 0:00:16]} 44. Rg8 {[%clk 0:00:06]}  Rf7+ {[%clk 0:00:16]} 45. Kh8 {[%clk 0:00:05]}  Rbb7 {[%clk 0:00:13]} 46. Rxg4 {[%clk 0:00:02]}  Rf8+ {[%clk 0:00:11]} 47. Rg8 {[%clk 0:00:02]}  Rxg8+ {[%clk 0:00:12]} 48. Kxg8 {[%clk 0:00:03]}  Kxc2 {[%clk 0:00:13]} 49. Rd6 {[%clk 0:00:03]}  b4 {[%clk 0:00:12]} 50. Rxh6 {[%clk 0:00:03]}  b3 {[%clk 0:00:13]} 51. Rc6 {[%clk 0:00:02]}  c3 {[%clk 0:00:12]} 52. h6 {[%clk 0:00:02]}  b2 {[%clk 0:00:13]} 53. h7 {[%clk 0:00:01]}  Rxh7 {[%clk 0:00:11]} 0-1


[Site "https://www.chess.com"]

[Event "Titled Tuesday Blitz February 14 Late 2023"]
[White "FuenfgegenWilly"]
[Black "Mikhalsky, Vladimir"]
[BlackFideId "14144352"]
[WhiteElo "2322"]
[BlackElo "2219"]
[Result "0-1"]
[Round "09"]
[TimeControl "180+2"]
[Date "2023.02.14"]
[WhiteClock "0:00:05"]
[BlackClock "0:00:20"]

1. e4 {[%clk 0:02:55]}  c5 {[%clk 0:02:59]} 2. Nc3 {[%clk 0:02:55]}  Nc6 {[%clk 0:02:59]} 3. f4 {[%clk 0:02:56]}  e6 {[%clk 0:02:57]} 4. Nf3 {[%clk 0:02:55]}  d5 {[%clk 0:02:57]} 5. Bb5 {[%clk 0:02:54]}  d4 {[%clk 0:02:52]} 6. Bxc6+ {[%clk 0:02:53]}  bxc6 {[%clk 0:02:51]} 7. Nb1 {[%clk 0:02:53]}  d3 {[%clk 0:02:49]} 8. cxd3 {[%clk 0:02:50]}  Qxd3 {[%clk 0:02:47]} 9. Qe2 {[%clk 0:02:49]}  Ba6 {[%clk 0:02:37]} 10. Qxd3 {[%clk 0:02:42]}  Bxd3 {[%clk 0:02:36]} 11. Nc3 {[%clk 0:02:43]}  Nf6 {[%clk 0:02:36]} 12. e5 {[%clk 0:02:41]}  Nd5 {[%clk 0:02:35]} 13. g3 {[%clk 0:02:41]}  c4 {[%clk 0:02:27]} 14. b3 {[%clk 0:02:19]}  Nb4 {[%clk 0:02:23]} 15. Kf2 {[%clk 0:02:11]}  Bc5+ {[%clk 0:02:12]} 16. Kg2 {[%clk 0:02:11]}  Nc2 {[%clk 0:02:04]} 17. Rb1 {[%clk 0:02:11]}  Nd4 {[%clk 0:02:00]} 18. Ra1 {[%clk 0:01:42]}  cxb3 {[%clk 0:01:44]} 19. Nxd4 {[%clk 0:01:42]}  Bxd4 {[%clk 0:01:41]} 20. axb3 {[%clk 0:01:42]}  Bxc3 {[%clk 0:01:38]} 21. dxc3 {[%clk 0:01:42]}  Be4+ {[%clk 0:01:38]} 22. Kg1 {[%clk 0:01:38]}  Bxh1 {[%clk 0:01:37]} 23. Kxh1 {[%clk 0:01:38]}  O-O {[%clk 0:01:32]} 24. Be3 {[%clk 0:01:38]}  a5 {[%clk 0:01:25]} 25. Kg2 {[%clk 0:01:28]}  Rfb8 {[%clk 0:01:23]} 26. Ra3 {[%clk 0:01:29]}  Rb5 {[%clk 0:01:22]} 27. b4 {[%clk 0:01:12]}  h5 {[%clk 0:01:16]} 28. Kf3 {[%clk 0:01:10]}  a4 {[%clk 0:01:01]} 29. Bc5 {[%clk 0:01:06]}  Kh7 {[%clk 0:00:54]} 30. Ke4 {[%clk 0:01:04]}  Kg6 {[%clk 0:00:52]} 31. h3 {[%clk 0:01:03]}  f5+ {[%clk 0:00:47]} 32. Ke3 {[%clk 0:00:57]}  h4 {[%clk 0:00:47]} 33. gxh4 {[%clk 0:00:53]}  Kh5 {[%clk 0:00:47]} 34. Be7 {[%clk 0:00:51]}  Rd5 {[%clk 0:00:43]} 35. c4 {[%clk 0:00:50]}  Rd1 {[%clk 0:00:41]} 36. b5 {[%clk 0:00:49]}  cxb5 {[%clk 0:00:40]} 37. cxb5 {[%clk 0:00:50]}  Rb1 {[%clk 0:00:40]} 38. Kd4 {[%clk 0:00:36]}  Rxb5 {[%clk 0:00:39]} 39. Rg3 {[%clk 0:00:35]}  g6 {[%clk 0:00:30]} 40. Bf6 {[%clk 0:00:26]}  Rb3 {[%clk 0:00:27]} 41. Rg5+ {[%clk 0:00:10]}  Kxh4 {[%clk 0:00:24]} 42. Rxg6+ {[%clk 0:00:08]}  Kxh3 {[%clk 0:00:24]} 43. Rh6+ {[%clk 0:00:09]}  Kg2 {[%clk 0:00:21]} 44. Rg6+ {[%clk 0:00:09]}  Kf3 {[%clk 0:00:20]} 45. Bh4 {[%clk 0:00:08]}  Kxf4 {[%clk 0:00:20]} 46. Bg5+ {[%clk 0:00:08]}  Kf3 {[%clk 0:00:20]} 47. Bh4 {[%clk 0:00:08]}  Rb4+ {[%clk 0:00:20]} 48. Kc5 {[%clk 0:00:08]}  Rxh4 {[%clk 0:00:20]} 49. Rxe6 {[%clk 0:00:07]}  a3 {[%clk 0:00:20]} 50. Ra6 {[%clk 0:00:05]}  Rxa6 {[%clk 0:00:20]} 0-1


[Site "https://www.chess.com"]

[Event "Titled Tuesday Blitz February 14 Late 2023"]
[White "Slavin, Alexey"]
[Black "Slade, Theodore"]
[WhiteFideId "24104388"]
[BlackFideId "426547"]
[WhiteElo "2364"]
[BlackElo "1995"]
[Result "0-1"]
[Round "09"]
[TimeControl "180+2"]
[Date "2023.02.14"]
[WhiteClock "0:00:01"]
[BlackClock "0:01:08"]

1. e4 {[%clk 0:02:06]}  e5 {[%clk 0:03:00]} 2. Nf3 {[%clk 0:02:05]}  Nc6 {[%clk 0:03:01]} 3. c3 {[%clk 0:02:06]}  d5 {[%clk 0:03:00]} 4. Qa4 {[%clk 0:02:05]}  f6 {[%clk 0:02:59]} 5. d3 {[%clk 0:02:05]}  Be6 {[%clk 0:02:55]} 6. Be2 {[%clk 0:02:05]}  Bd6 {[%clk 0:02:51]} 7. b4 {[%clk 0:02:03]}  a6 {[%clk 0:02:49]} 8. O-O {[%clk 0:02:01]}  Ne7 {[%clk 0:02:47]} 9. a3 {[%clk 0:01:56]}  O-O {[%clk 0:02:47]} 10. Qc2 {[%clk 0:01:55]}  Qd7 {[%clk 0:02:46]} 11. Nbd2 {[%clk 0:01:53]}  Rad8 {[%clk 0:02:43]} 12. Nb3 {[%clk 0:01:53]}  b6 {[%clk 0:02:38]} 13. Re1 {[%clk 0:01:44]}  Rfe8 {[%clk 0:02:37]} 14. Bf1 {[%clk 0:01:43]}  Bg4 {[%clk 0:02:34]} 15. Nfd2 {[%clk 0:01:40]}  Be6 {[%clk 0:02:22]} 16. Bb2 {[%clk 0:01:33]}  Ng6 {[%clk 0:02:22]} 17. Rad1 {[%clk 0:01:31]}  Bf8 {[%clk 0:02:23]} 18. Nf3 {[%clk 0:01:30]}  Bg4 {[%clk 0:02:22]} 19. Nbd2 {[%clk 0:01:16]}  Nf4 {[%clk 0:02:20]} 20. h3 {[%clk 0:01:10]}  Bh5 {[%clk 0:02:20]} 21. Kh2 {[%clk 0:01:07]}  Ne7 {[%clk 0:02:14]} 22. g3 {[%clk 0:01:05]}  Ne6 {[%clk 0:02:11]} 23. Bg2 {[%clk 0:01:03]}  c6 {[%clk 0:02:11]} 24. c4 {[%clk 0:00:50]}  d4 {[%clk 0:02:09]} 25. Nb3 {[%clk 0:00:48]}  c5 {[%clk 0:02:08]} 26. bxc5 {[%clk 0:00:43]}  bxc5 {[%clk 0:02:09]} 27. Na5 {[%clk 0:00:39]}  Rb8 {[%clk 0:02:06]} 28. Bc1 {[%clk 0:00:39]}  Nc6 {[%clk 0:01:59]} 29. Bd2 {[%clk 0:00:37]}  Qc7 {[%clk 0:01:55]} 30. Nxc6 {[%clk 0:00:35]}  Qxc6 {[%clk 0:01:56]} 31. Rb1 {[%clk 0:00:35]}  Bd6 {[%clk 0:01:43]} 32. Nh4 {[%clk 0:00:35]}  Bf7 {[%clk 0:01:39]} 33. Nf5 {[%clk 0:00:34]}  Bf8 {[%clk 0:01:39]} 34. Rxb8 {[%clk 0:00:28]}  Rxb8 {[%clk 0:01:39]} 35. Rb1 {[%clk 0:00:29]}  Rb6 {[%clk 0:01:32]} 36. Ba5 {[%clk 0:00:27]}  Rb7 {[%clk 0:01:32]} 37. Rb2 {[%clk 0:00:18]}  Qc8 {[%clk 0:01:31]} 38. Qb1 {[%clk 0:00:17]}  Rxb2 {[%clk 0:01:32]} 39. Qxb2 {[%clk 0:00:17]}  g6 {[%clk 0:01:26]} 40. Nh4 {[%clk 0:00:14]}  Be7 {[%clk 0:01:24]} 41. Qb6 {[%clk 0:00:13]}  Bd8 {[%clk 0:01:23]} 42. Qa7 {[%clk 0:00:07]}  Bxa5 {[%clk 0:01:23]} 43. f4 {[%clk 0:00:06]}  exf4 {[%clk 0:01:21]} 44. gxf4 {[%clk 0:00:05]}  Nxf4 {[%clk 0:01:22]} 45. Kg3 {[%clk 0:00:05]}  Nxd3 {[%clk 0:01:21]} 46. e5 {[%clk 0:00:04]}  Nxe5 {[%clk 0:01:19]} 47. Bd5 {[%clk 0:00:04]}  Bxd5 {[%clk 0:01:18]} 48. cxd5 {[%clk 0:00:05]}  d3 {[%clk 0:01:16]} 49. Ng2 {[%clk 0:00:03]}  d2 {[%clk 0:01:14]} 50. Ne3 {[%clk 0:00:03]}  Nc4 {[%clk 0:01:11]} 51. d6 {[%clk 0:00:03]}  Nxe3 {[%clk 0:01:08]} 52. d7 {[%clk 0:00:01]}  Qc7+ {[%clk 0:01:08]} 0-1


[Site "https://www.chess.com"]